[Event "1st Bangalore GM-Open-B 2024"]
[Site "Bangalore"]
[Date "2024.01.20"]
[Round "7.5"]
[White "Patil Divya"]
[Black "Dawda Vihaan"]
[Result "1/2-1/2"]
[ECO "B92"]
[WhiteElo "1669"]
[BlackElo "1706"]
[Annotator "NA RC"]
[PlyCount "85"]
[EventDate "2024.01.20"]
[EventType "swiss"]
[EventCountry "IND"]
[SourceTitle "playchess.com"]
[Source "ChessBase"]
[SourceQuality "1"]
[TimeControl "3600+30"]

1. e4 {[%emt 0:00:02]} c5 {[%emt 0:00:17]} 2. Nf3 {[%emt 0:00:07]} d6 {[%emt 0:00:14]} 3. d4 {[%emt 0:00:14]} cxd4 {[%emt 0:00:12]} 4. Nxd4 {[%emt 0:00:11]} Nf6 {[%emt 0:00:16]} 5. Nc3 {[%emt 0:00:11]} a6 {[%emt 0:00:10]} 6. Be2 {[%emt 0:00:43]} e5 {[%emt 0:00:17]} 7. Nb3 {[%emt 0:00:25]} Be7 {[%emt 0:00:47]} 8. Be3 {[%emt 0:01:01]} Be6 {[%emt 0:00:57]} 9. O-O {[%emt 0:00:37]} O-O {[%emt 0:00:31]} 10. f4 {[%emt 0:01:07]} b5 {[%emt 0:02:53]} 11. a3 {[%emt 0:00:24]} Nbd7 {[%emt 0:00:52]} 12. Kh1 {[%emt 0:04:32]} Rc8 {[%emt 0:02:08]} 13. f5 {[%emt 0:08:04]} Bc4 {[%emt 0:02:47]} 14. Bxc4 {[%emt 0:04:34]} bxc4 {[%emt 0:01:03]} 15. Nd2 {[%emt 0:00:39]} Nb6 {[%emt 0:04:58]} 16. Qe2 {[%emt 0:01:39]} d5 {[%emt 0:03:35]} 17. Bxb6 {[%emt 0:03:15]} Qxb6 {[%emt 0:00:06]} 18. exd5 {[%emt 0:05:03]} Qxb2 {[%emt 0:00:34]} 19. Nde4 {[%emt 0:00:52]} Nxe4 {[%emt 0:07:43]} 20. Nxe4 {[%emt 0:00:08]} f6 {[%emt 0:05:26]} 21. d6 {[%emt 0:03:11]} Bd8 {[%emt 0:00:05]} 22. h3 {[%emt 0:04:30]} Kh8 {[%emt 0:01:55]} 23. Rfb1 {[%emt 0:03:06]} Qd4 {[%emt 0:00:11]} 24. Rd1 {[%emt 0:01:10]} Qa7 {[%emt 0:01:21]} 25. Rab1 {[%emt 0:03:14]} Qd7 {[%emt 0:03:04]} 26. Qf2 {[%emt 0:00:32]} Rc6 {[%emt 0:01:44]} 27. c3 {[%emt 0:06:13]} Qf7 {[%emt 0:03:30]} 28. Rb8 {[%emt 0:02:22]} Qd7 {[%emt 0:03:12]} 29. Rdb1 {[%emt 0:02:57]} Rxd6 {[%emt 0:02:06]} 30. Nxd6 {[%emt 0:00:25]} Qxd6 {[%emt 0:00:05]} 31. Qf3 {[%emt 0:00:51]} h6 {[%emt 0:03:18]} 32. Rc8 {[%emt 0:01:25]} Kh7 {[%emt 0:01:20]} 33. Rbb8 {[%emt 0:01:09]} Bc7 {[%emt 0:02:16]} 34. Rxc7 {[%emt 0:03:44]} Rxb8 {[%emt 0:00:09]} 35. Rc6 {[%emt 0:02:08]} Qxa3 {[%emt 0:02:08]} 36. Rxc4 {[%emt 0:00:50]} Rb1+ {[%emt 0:01:55]} 37. Kh2 {[%emt 0:00:15]} Qa1 {[%emt 0:00:16]} 38. Re4 {[%emt 0:02:47]} Rh1+ {[%emt 0:03:23]} 39. Kg3 {[%emt 0:00:23]} Rc1 {[%emt 0:02:27]} 40. Re3 {[%emt 0:02:03]} Qa4 {[%emt 0:01:16]} 41. Kh2 {[%emt 0:01:24]} Rd1 {[%emt 0:01:51]} 42. Re4 {[%emt 0:01:05]} Qd7 {[%emt 0:00:10]} 43. Qh5 {[%emt 0:01:21]} 1/2-1/2

[Event "1st Bangalore GM-Open-B 2024"]
[Site "Bangalore"]
[Date "2024.01.20"]
[Round "8.1"]
[White "Kadav Omkar"]
[Black "Selvamurugan B"]
[Result "1/2-1/2"]
[ECO "C77"]
[WhiteElo "1725"]
[BlackElo "1920"]
[Annotator "NA RC"]
[PlyCount "68"]
[EventDate "2024.01.20"]
[EventType "swiss"]
[EventCountry "IND"]
[SourceTitle "playchess.com"]
[Source "ChessBase"]
[SourceQuality "1"]
[TimeControl "3600+30"]

1. e4 {[%emt 0:02:35]} e5 {[%emt 0:00:10]} 2. Nf3 {[%emt 0:00:19]} Nc6 {[%emt 0:00:05]} 3. Bb5 {[%emt 0:00:04]} a6 {[%emt 0:00:03]} 4. Ba4 {[%emt 0:00:05]} Nf6 {[%emt 0:00:38]} 5. Qe2 {[%emt 0:00:34]} Bc5 {[%emt 0:02:58]} 6. c3 {[%emt 0:02:00]} O-O {[%emt 0:00:28]} 7. d3 {[%emt 0:00:16]} h6 {[%emt 0:02:19]} 8. O-O {[%emt 0:00:35]} Re8 {[%emt 0:00:32]} 9. h3 {[%emt 0:01:29]} d5 {[%emt 0:01:38]} 10. Rd1 {[%emt 0:00:18]} b5 {[%emt 0:01:50]} 11. Bb3 {[%emt 0:00:18]} Bb7 {[%emt 0:01:20]} 12. Nbd2 {[%emt 0:00:32]} d4 {[%emt 0:06:04]} 13. c4 {[%emt 0:03:06]} Nh5 {[%emt 0:03:51]} 14. Nf1 {[%emt 0:01:35]} Na5 {[%emt 0:01:42]} 15. Bc2 {[%emt 0:01:43]} bxc4 {[%emt 0:01:42]} 16. dxc4 {[%emt 0:00:25]} Nc6 {[%emt 0:04:47]} 17. Ne1 {[%emt 0:07:29]} Nf4 {[%emt 0:04:48]} 18. Bxf4 {[%emt 0:02:40]} exf4 {[%emt 0:00:02]} 19. Nd3 {[%emt 0:00:43]} Qd6 {[%emt 0:00:01]} 20. Ba4 {[%emt 0:06:08]} Re7 {[%emt 0:01:38]} 21. Bxc6 {[%emt 0:05:12]} Bxc6 {[%emt 0:00:01]} 22. e5 {[%emt 0:11:59]} Qg6 {[%emt 0:01:56]} 23. Qg4 {[%emt 0:01:39]} Qxg4 {[%emt 0:00:59]} 24. hxg4 {[%emt 0:00:05]} Ba7 {[%emt 0:00:05]} 25. Nd2 {[%emt 0:01:28]} a5 {[%emt 0:01:22]} 26. Re1 {[%emt 0:02:50]} Rb8 {[%emt 0:00:07]} 27. b3 {[%emt 0:00:46]} g5 {[%emt 0:01:53]} 28. Ne4 {[%emt 0:01:07]} Kg7 {[%emt 0:04:13]} 29. Nf6 {[%emt 0:01:48]} Ba8 {[%emt 0:02:25]} 30. Nh5+ {[%emt 0:02:23]} Kg6 {[%emt 0:00:10]} 31. Nf6 {[%emt 0:00:08]} Kg7 {[%emt 0:00:01]} 32. Nh5+ {[%emt 0:00:05]} Kg6 {[%emt 0:00:02]} 33. Nf6 {[%emt 0:00:13]} Kg7 {[%emt 0:00:01]} 34. f3 {[%emt 0:02:45]} Rh8 {[%emt 0:00:59]} 1/2-1/2

[Event "1st Bangalore GM-Open-B 2024"]
[Site "Bangalore"]
[Date "2024.01.20"]
[Round "8.2"]
[White "Jaidambareesh N R"]
[Black "Pranay Akula"]
[Result "1-0"]
[ECO "A05"]
[WhiteElo "1757"]
[BlackElo "1712"]
[Annotator "NA RC"]
[PlyCount "75"]
[EventDate "2024.01.20"]
[EventType "swiss"]
[EventCountry "IND"]
[SourceTitle "playchess.com"]
[Source "ChessBase"]
[SourceQuality "1"]
[TimeControl "3600+30"]

1. Nf3 {[%emt 0:02:37]} Nf6 {[%emt 0:00:09]} 2. g3 {[%emt 0:00:07]} g6 {[%emt 0:00:07]} 3. b3 {[%emt 0:00:05]} Bg7 {[%emt 0:00:05]} 4. Bb2 {[%emt 0:00:07]} O-O {[%emt 0:00:07]} 5. Bg2 {[%emt 0:00:06]} d5 {[%emt 0:00:09]} 6. c4 {[%emt 0:00:06]} c5 {[%emt 0:00:08]} 7. cxd5 {[%emt 0:00:10]} Nxd5 {[%emt 0:01:30]} 8. Bxg7 {[%emt 0:00:09]} Kxg7 {[%emt 0:00:04]} 9. O-O {[%emt 0:00:37]} Nc6 {[%emt 0:01:02]} 10. d4 {[%emt 0:00:07]} cxd4 {[%emt 0:00:07]} 11. Nxd4 {[%emt 0:00:09]} e5 {[%emt 0:04:09]} 12. Nxc6 {[%emt 0:01:22]} bxc6 {[%emt 0:00:07]} 13. Qc2 {[%emt 0:06:28]} Be6 {[%emt 0:00:35]} 14. Qb2 {[%emt 0:00:38]} f6 {[%emt 0:02:51]} 15. Nd2 {[%emt 0:00:34]} Qe7 {[%emt 0:00:54]} 16. Rac1 {[%emt 0:00:18]} Rac8 {[%emt 0:00:11]} 17. Ne4 {[%emt 0:02:38]} Nb6 {[%emt 0:04:37]} 18. Nc5 {[%emt 0:06:30]} Bd5 {[%emt 0:00:28]} 19. Bh3 {[%emt 0:02:08]} f5 {[%emt 0:05:27]} 20. e4 {[%emt 0:01:29]} fxe4 {[%emt 0:04:11]} 21. Bxc8 {[%emt 0:05:33]} Nxc8 {[%emt 0:00:08]} 22. Qe2 {[%emt 0:00:10]} Nd6 {[%emt 0:00:50]} 23. Na4 {[%emt 0:00:24]} Nb5 {[%emt 0:04:08]} 24. Nc3 {[%emt 0:02:43]} Nd4 {[%emt 0:00:43]} 25. Qg4 {[%emt 0:04:25]} h5 {[%emt 0:02:18]} 26. Nxd5 {[%emt 0:00:19]} cxd5 {[%emt 0:00:38]} 27. Qd1 {[%emt 0:00:12]} Rf3 {[%emt 0:00:52]} 28. Kg2 {[%emt 0:01:03]} Qf7 {[%emt 0:04:00]} 29. Qd2 {[%emt 0:03:23]} Rd3 {[%emt 0:00:17]} 30. Qg5 {[%emt 0:00:09]} Kh7 {[%emt 0:07:35]} 31. h4 {[%emt 0:04:30]} Qg7 {[%emt 0:07:16]} 32. Qd8 {[%emt 0:02:14]} Ne6 {[%emt 0:00:11]} 33. Qd6 {[%emt 0:00:16]} Qf6 {[%emt 0:10:35]} 34. Kg1 {[%emt 0:05:17]} Qf5 {[%emt 0:03:28]} 35. Qe7+ {[%emt 0:00:09]} Kg8 {[%emt 0:07:05]} 36. Rc8+ {[%emt 0:00:08]} Nf8 {[%emt 0:00:03]} 37. Rc7 {[%emt 0:00:05]} Ne6 {[%emt 0:00:30]} 38. Qh7+ {[%emt 0:00:07]} 1-0

[Event "1st Bangalore GM-Open-B 2024"]
[Site "Bangalore"]
[Date "2024.01.20"]
[Round "8.3"]
[White "Yash Abhijit Patil"]
[Black "Nayak, Biswajit"]
[Result "1/2-1/2"]
[ECO "E17"]
[WhiteElo "1689"]
[BlackElo "1990"]
[Annotator "NA RC"]
[PlyCount "211"]
[EventDate "2024.01.20"]
[EventType "swiss"]
[EventCountry "IND"]
[SourceTitle "playchess.com"]
[Source "ChessBase"]
[SourceQuality "1"]
[TimeControl "3600+30"]

1. d4 {[%emt 0:00:18]} Nf6 {[%emt 0:00:27]} 2. Nf3 {[%emt 0:00:51]} d5 {[%emt 0:00:35]} 3. c4 {[%emt 0:01:16]} e6 {[%emt 0:00:54]} 4. g3 {[%emt 0:01:10]} Be7 {[%emt 0:04:07]} 5. Bg2 {[%emt 0:00:35]} O-O {[%emt 0:00:06]} 6. O-O {[%emt 0:00:30]} Nbd7 {[%emt 0:01:22]} 7. b3 {[%emt 0:03:07]} b6 {[%emt 0:01:22]} 8. Bb2 {[%emt 0:01:59]} Bb7 {[%emt 0:00:10]} 9. Nc3 {[%emt 0:01:03]} c5 {[%emt 0:00:58]} 10. cxd5 {[%emt 0:01:30]} Nxd5 {[%emt 0:00:31]} 11. Rc1 {[%emt 0:01:35]} Rc8 {[%emt 0:02:53]} 12. Nxd5 {[%emt 0:03:42]} Bxd5 {[%emt 0:00:13]} 13. Qd3 {[%emt 0:02:43]} cxd4 {[%emt 0:02:12]} 14. Bxd4 {[%emt 0:02:08]} Rxc1 {[%emt 0:07:03]} 15. Rxc1 {[%emt 0:00:10]} Nc5 {[%emt 0:00:24]} 16. Qc3 {[%emt 0:02:26]} Bf6 {[%emt 0:09:12]} 17. Bxf6 {[%emt 0:02:58]} gxf6 {[%emt 0:01:33]} 18. Qe3 {[%emt 0:01:11]} Qb8 {[%emt 0:05:05]} 19. b4 {[%emt 0:06:52]} Nd7 {[%emt 0:01:52]} 20. a3 {[%emt 0:03:20]} Rc8 {[%emt 0:02:38]} 21. Rd1 {[%emt 0:00:18]} Nf8 {[%emt 0:06:37]} 22. h4 {[%emt 0:03:17]} Qc7 {[%emt 0:00:56]} 23. Kh2 {[%emt 0:01:09]} Qc3 {[%emt 0:01:45]} 24. Rd3 {[%emt 0:00:11]} Qc1 {[%emt 0:00:17]} 25. Qd4 {[%emt 0:00:56]} Qh6 {[%emt 0:00:38]} 26. Nd2 {[%emt 0:03:04]} Bxg2 {[%emt 0:00:41]} 27. Kxg2 {[%emt 0:00:09]} f5 {[%emt 0:00:45]} 28. a4 {[%emt 0:04:39]} Qg7 {[%emt 0:00:49]} 29. Qd6 {[%emt 0:03:50]} h6 {[%emt 0:01:27]} 30. a5 {[%emt 0:02:55]} bxa5 {[%emt 0:00:02]} 31. bxa5 {[%emt 0:00:06]} Qa1 {[%emt 0:00:32]} 32. Nb3 {[%emt 0:00:32]} Qa4 {[%emt 0:00:45]} 33. Qd4 {[%emt 0:01:40]} Qxd4 {[%emt 0:00:38]} 34. Rxd4 {[%emt 0:00:28]} Rb8 {[%emt 0:00:37]} 35. Nd2 {[%emt 0:00:17]} Rb5 {[%emt 0:00:39]} 36. Nc4 {[%emt 0:00:40]} Rc5 {[%emt 0:00:22]} 37. f4 {[%emt 0:00:50]} f6 {[%emt 0:00:25]} 38. h5 {[%emt 0:01:56]} e5 {[%emt 0:01:46]} 39. fxe5 {[%emt 0:00:05]} fxe5 {[%emt 0:00:03]} 40. Rh4 {[%emt 0:00:07]} Kf7 {[%emt 0:04:04]} 41. Ne3 {[%emt 0:01:41]} Kf6 {[%emt 0:01:13]} 42. Rc4 {[%emt 0:01:36]} Ne6 {[%emt 0:02:47]} 43. Rxc5 {[%emt 0:03:12]} Nxc5 {[%emt 0:00:02]} 44. Nc4 {[%emt 0:00:12]} e4 {[%emt 0:01:13]} 45. Kf2 {[%emt 0:00:54]} Kg5 {[%emt 0:00:26]} 46. Ke3 {[%emt 0:00:33]} Nb3 {[%emt 0:00:37]} 47. a6 {[%emt 0:01:46]} Nc5 48. Ne5 {[%emt 0:00:06]} Nxa6 {[%emt 0:00:52]} 49. Nc6 {[%emt 0:00:04]} Nc7 {[%emt 0:00:24]} 50. Nxa7 {[%emt 0:00:06]} Ne6 {[%emt 0:00:31]} 51. Nb5 {[%emt 0:01:12]} Kxh5 52. Nd6 {[%emt 0:00:20]} Kg4 {[%emt 0:00:15]} 53. Nf7 {[%emt 0:00:21]} Kh5 {[%emt 0:02:46]} 54. Nd6 {[%emt 0:00:28]} Kg5 {[%emt 0:00:25]} 55. Nf7+ {[%emt 0:00:15]} Kg6 {[%emt 0:00:24]} 56. Nd6 {[%emt 0:00:06]} h5 {[%emt 0:00:24]} 57. Nc4 {[%emt 0:00:41]} Kg5 {[%emt 0:00:16]} 58. Ne5 {[%emt 0:00:10]} Kf6 {[%emt 0:01:38]} 59. Nd7+ {[%emt 0:00:08]} Kg6 {[%emt 0:00:55]} 60. Ne5+ {[%emt 0:00:18]} Kg5 {[%emt 0:00:05]} 61. Nf7+ {[%emt 0:00:16]} Kf6 {[%emt 0:00:15]} 62. Nd6 {[%emt 0:00:08]} Nd8 {[%emt 0:00:41]} 63. Kf4 {[%emt 0:00:18]} Ne6+ {[%emt 0:00:01]} 64. Ke3 {[%emt 0:00:08]} Kg6 {[%emt 0:00:07]} 65. Nc4 {[%emt 0:01:00]} Nc7 {[%emt 0:00:32]} 66. Kd4 {[%emt 0:01:38]} Kf6 {[%emt 0:00:44]} 67. Nd6 {[%emt 0:00:38]} Ke6 {[%emt 0:00:21]} 68. Nc4 {[%emt 0:00:28]} Nb5+ {[%emt 0:00:22]} 69. Ke3 {[%emt 0:00:19]} Nc3 {[%emt 0:00:11]} 70. Kf2 {[%emt 0:02:15]} Kd5 {[%emt 0:00:45]} 71. Ne3+ {[%emt 0:00:13]} Ke5 {[%emt 0:00:02]} 72. Nc4+ {[%emt 0:00:24]} Ke6 {[%emt 0:00:27]} 73. Ke3 {[%emt 0:00:45]} Kf6 {[%emt 0:00:49]} 74. Nd6 {[%emt 0:00:24]} Kg6 {[%emt 0:00:35]} 75. Kf2 {[%emt 0:00:25]} Nd1+ {[%emt 0:00:19]} 76. Ke1 {[%emt 0:00:11]} Ne3 {[%emt 0:00:02]} 77. Kf2 {[%emt 0:00:10]} Ng4+ {[%emt 0:00:04]} 78. Kg2 {[%emt 0:00:11]} Kf6 {[%emt 0:00:24]} 79. Ne8+ {[%emt 0:00:35]} Kf7 {[%emt 0:01:40]} 80. Nd6+ {[%emt 0:00:11]} Kg6 {[%emt 0:01:13]} 81. Nc4 {[%emt 0:00:09]} Kg5 {[%emt 0:00:27]} 82. Kh3 {[%emt 0:01:13]} Nf2+ {[%emt 0:00:24]} 83. Kg2 {[%emt 0:00:06]} Nd1 {[%emt 0:00:04]} 84. Nd6 {[%emt 0:00:39]} Kg4 {[%emt 0:01:30]} 85. Nf7 {[%emt 0:01:21]} Ne3+ {[%emt 0:01:21]} 86. Kf2 {[%emt 0:00:06]} Nd1+ {[%emt 0:01:32]} 87. Kg2 {[%emt 0:00:11]} Nc3 {[%emt 0:00:10]} 88. Ne5+ {[%emt 0:00:40]} Kg5 {[%emt 0:00:07]} 89. Kf2 {[%emt 0:02:33]} Kf6 {[%emt 0:00:21]} 90. Nc4 {[%emt 0:00:10]} Ke6 {[%emt 0:00:07]} 91. Ne3 {[%emt 0:00:52]} Nd5 {[%emt 0:01:12]} 92. Nc4 {[%emt 0:00:10]} Nf6 {[%emt 0:00:02]} 93. Ke3 {[%emt 0:00:33]} Nd5+ {[%emt 0:00:28]} 94. Kf2 {[%emt 0:00:15]} Ne7 {[%emt 0:00:46]} 95. Ke3 {[%emt 0:01:26]} Kf6 {[%emt 0:00:00]} 96. Nd6 {[%emt 0:00:17]} Kg5 {[%emt 0:00:00]} 97. Kf2 {[%emt 0:00:18]} Ng8 {[%emt 0:00:00]} 98. Kg2 {[%emt 0:00:37]} Kg4 {[%emt 0:00:00]} 99. Kf2 {[%emt 0:00:34]} Ne7 {[%emt 0:00:00]} 100. Kg2 {[%emt 0:00:20]} Nd5 {[%emt 0:00:00]} 101. Nc4 {[%emt 0:02:49]} f4 {[%emt 0:00:00]} 102. gxf4 {[%emt 0:00:10]} Kxf4 {[%emt 0:00:00]} 103. Kh3 {[%emt 0:00:23]} Ne3 {[%emt 0:00:01]} 104. Nd6 {[%emt 0:00:31]} Nf5 {[%emt 0:00:03]} 105. Nc4 {[%emt 0:00:15]} h4 {[%emt 0:00:17]} 106. Kh2 {[%emt 0:00:32]} 1/2-1/2

[Event "1st Bangalore GM-Open-B 2024"]
[Site "Bangalore"]
[Date "2024.01.20"]
[Round "8.4"]
[White "Sivathanujan, S."]
[Black "Patil Divya"]
[Result "0-1"]
[ECO "C54"]
[WhiteElo "1821"]
[BlackElo "1669"]
[Annotator "NA RC"]
[PlyCount "151"]
[EventDate "2024.01.20"]
[EventType "swiss"]
[EventCountry "IND"]
[SourceTitle "playchess.com"]
[Source "ChessBase"]
[SourceQuality "1"]
[TimeControl "3600+30"]

1. e4 {[%emt 0:00:10]} e5 {[%emt 0:00:06]} 2. Nf3 {[%emt 0:00:05]} Nc6 {[%emt 0:00:15]} 3. Bc4 {[%emt 0:00:06]} Bc5 {[%emt 0:00:10]} 4. d3 {[%emt 0:00:37]} Nf6 {[%emt 0:01:28]} 5. c3 {[%emt 0:00:09]} d6 {[%emt 0:00:06]} 6. a4 {[%emt 0:00:09]} a6 {[%emt 0:01:47]} 7. O-O {[%emt 0:00:07]} Ba7 {[%emt 0:01:06]} 8. Be3 {[%emt 0:01:19]} O-O {[%emt 0:01:50]} 9. Nbd2 {[%emt 0:01:52]} h6 {[%emt 0:01:25]} 10. h3 {[%emt 0:00:52]} Re8 {[%emt 0:01:55]} 11. Bb3 {[%emt 0:01:33]} Ne7 {[%emt 0:01:46]} 12. Nh4 {[%emt 0:06:28]} d5 {[%emt 0:04:16]} 13. Bxa7 {[%emt 0:01:57]} Rxa7 {[%emt 0:00:38]} 14. f4 {[%emt 0:01:44]} exf4 {[%emt 0:03:05]} 15. Rxf4 {[%emt 0:01:14]} Qd6 {[%emt 0:05:13]} 16. Qf3 {[%emt 0:05:39]} Be6 {[%emt 0:03:44]} 17. Qf2 {[%emt 0:02:04]} Raa8 {[%emt 0:03:05]} 18. Re1 {[%emt 0:02:04]} Nh5 {[%emt 0:07:07]} 19. Rf3 {[%emt 0:06:31]} g5 {[%emt 0:02:54]} 20. g4 {[%emt 0:01:40]} Nf4 {[%emt 0:02:32]} 21. Ng2 {[%emt 0:00:38]} Neg6 {[%emt 0:00:42]} 22. Nxf4 {[%emt 0:05:31]} Nxf4 {[%emt 0:00:44]} 23. e5 {[%emt 0:00:41]} Qf8 {[%emt 0:01:01]} 24. d4 {[%emt 0:03:31]} Qg7 {[%emt 0:07:10]} 25. Nf1 {[%emt 0:03:18]} h5 {[%emt 0:03:01]} 26. gxh5 {[%emt 0:02:59]} Nxh3+ {[%emt 0:05:52]} 27. Rxh3 {[%emt 0:00:19]} Bxh3 {[%emt 0:00:07]} 28. Bxd5 {[%emt 0:00:08]} c6 {[%emt 0:01:09]} 29. Bb3 {[%emt 0:00:12]} Be6 {[%emt 0:01:40]} 30. Bc2 {[%emt 0:00:21]} Qh6 {[%emt 0:01:36]} 31. Ng3 {[%emt 0:00:10]} Kf8 {[%emt 0:01:30]} 32. Ne4 {[%emt 0:01:32]} Qxh5 {[%emt 0:03:22]} 33. Nf6 {[%emt 0:00:04]} Qh4 {[%emt 0:00:18]} 34. Qxh4 {[%emt 0:01:19]} gxh4 {[%emt 0:00:06]} 35. Nxe8 {[%emt 0:00:16]} Rxe8 {[%emt 0:00:40]} 36. Re4 {[%emt 0:00:34]} Bf5 {[%emt 0:00:18]} 37. Re2 {[%emt 0:00:01]} Be6 {[%emt 0:00:30]} 38. Rg2 {[%emt 0:00:43]} Ke7 {[%emt 0:00:25]} 39. Rg5 {[%emt 0:00:16]} Rd8 {[%emt 0:00:32]} 40. b4 {[%emt 0:06:22]} a5 {[%emt 0:00:55]} 41. bxa5 {[%emt 0:00:37]} Ra8 {[%emt 0:00:17]} 42. Kf2 {[%emt 0:02:19]} Rxa5 {[%emt 0:00:15]} 43. Ke3 {[%emt 0:00:07]} Ra8 {[%emt 0:01:11]} 44. Kf2 {[%emt 0:03:37]} b5 {[%emt 0:00:18]} 45. Be4 {[%emt 0:01:37]} bxa4 {[%emt 0:00:33]} 46. Bxc6 {[%emt 0:00:02]} Ra5 {[%emt 0:00:17]} 47. Rg1 {[%emt 0:00:27]} a3 {[%emt 0:00:37]} 48. Ra1 {[%emt 0:00:35]} a2 {[%emt 0:01:22]} 49. Be4 {[%emt 0:00:04]} Bc4 {[%emt 0:00:58]} 50. Ke3 {[%emt 0:00:51]} Ra3 {[%emt 0:00:44]} 51. Kd2 {[%emt 0:00:16]} Ra6 {[%emt 0:00:43]} 52. d5 {[%emt 0:01:17]} Ra5 {[%emt 0:00:26]} 53. Ke3 {[%emt 0:00:17]} Bxd5 {[%emt 0:01:28]} 54. Bxd5 {[%emt 0:00:11]} Rxd5 {[%emt 0:00:10]} 55. Rxa2 {[%emt 0:00:11]} Rxe5+ {[%emt 0:00:13]} 56. Kf3 {[%emt 0:00:13]} Rg5 {[%emt 0:00:21]} 57. Rh2 {[%emt 0:00:08]} Rg3+ {[%emt 0:00:06]} 58. Kf2 {[%emt 0:00:45]} Rg4 {[%emt 0:00:17]} 59. Rh3 {[%emt 0:00:12]} f5 {[%emt 0:00:24]} 60. Rd3 {[%emt 0:00:25]} Ke6 {[%emt 0:00:09]} 61. Rd8 {[%emt 0:00:19]} Rc4 {[%emt 0:00:26]} 62. Rh8 {[%emt 0:00:41]} Kd5 {[%emt 0:00:43]} 63. Ke3 {[%emt 0:00:53]} Rg4 {[%emt 0:01:00]} 64. Kf3 {[%emt 0:01:18]} Rd4 {[%emt 0:00:48]} 65. Ke3 Rc4 {[%emt 0:00:30]} 66. Kd3 {[%emt 0:01:10]} Ke5 {[%emt 0:00:34]} 67. Re8+ {[%emt 0:00:00]} Kf4 {[%emt 0:00:11]} 68. Rh8 {[%emt 0:00:00]} h3 {[%emt 0:00:00]} 69. Rf8 {[%emt 0:02:19]} Rc7 {[%emt 0:00:00]} 70. Rg8 {[%emt 0:00:03]} Kf3 {[%emt 0:00:00]} 71. Rh8 {[%emt 0:00:02]} Rd7+ {[%emt 0:00:21]} 72. Kc2 {[%emt 0:00:01]} Kg2 {[%emt 0:00:52]} 73. Rg8+ {[%emt 0:00:05]} Kh1 {[%emt 0:00:23]} 74. Rg5 {[%emt 0:00:19]} f4 {[%emt 0:00:11]} 75. Rf5 {[%emt 0:00:17]} Kg2 {[%emt 0:00:13]} 76. Rg5+ {[%emt 0:05:40]} 0-1

[Event "1st Bangalore GM-Open-B 2024"]
[Site "Bangalore"]
[Date "2024.01.20"]
[Round "8.5"]
[White "Ithal, H L Rajath"]
[Black "Bharat Bansal"]
[Result "0-1"]
[ECO "C10"]
[WhiteElo "1786"]
[BlackElo "1598"]
[Annotator "NA RC"]
[PlyCount "100"]
[EventDate "2024.01.20"]
[EventType "swiss"]
[EventCountry "IND"]
[SourceTitle "playchess.com"]
[Source "ChessBase"]
[SourceQuality "1"]
[TimeControl "3600+30"]

1. e4 {[%emt 0:00:02]} e6 {[%emt 0:03:32]} 2. d4 {[%emt 0:00:10]} d5 {[%emt 0:00:03]} 3. Nd2 {[%emt 0:00:09]} dxe4 {[%emt 0:00:05]} 4. Nxe4 {[%emt 0:00:07]} Bd7 {[%emt 0:00:01]} 5. Nf3 {[%emt 0:01:33]} Bc6 {[%emt 0:00:04]} 6. Bd3 {[%emt 0:01:28]} Nd7 {[%emt 0:00:08]} 7. O-O {[%emt 0:00:17]} Ngf6 {[%emt 0:00:09]} 8. Qe2 {[%emt 0:04:03]} Nxe4 {[%emt 0:00:39]} 9. Bxe4 {[%emt 0:00:09]} Bxe4 {[%emt 0:00:11]} 10. Qxe4 {[%emt 0:00:06]} c6 {[%emt 0:00:06]} 11. c4 {[%emt 0:09:07]} Be7 {[%emt 0:01:02]} 12. Bf4 {[%emt 0:03:30]} Nf6 {[%emt 0:00:52]} 13. Qe2 {[%emt 0:01:00]} O-O {[%emt 0:03:47]} 14. Rad1 {[%emt 0:01:33]} Re8 {[%emt 0:03:12]} 15. h3 {[%emt 0:02:06]} Qa5 {[%emt 0:02:14]} 16. b3 {[%emt 0:01:59]} Rad8 {[%emt 0:01:34]} 17. Rd3 {[%emt 0:01:52]} Qf5 {[%emt 0:06:09]} 18. Be5 {[%emt 0:05:13]} Rd7 {[%emt 0:06:47]} 19. Rfd1 {[%emt 0:15:00]} Red8 {[%emt 0:00:28]} 20. Qe3 {[%emt 0:02:23]} Bd6 {[%emt 0:11:24]} 21. g4 {[%emt 0:03:07]} Qg6 {[%emt 0:11:11]} 22. Nh4 {[%emt 0:02:53]} Qe4 {[%emt 0:01:25]} 23. Bxf6 {[%emt 0:00:07]} Qxe3 {[%emt 0:00:04]} 24. fxe3 {[%emt 0:00:06]} gxf6 {[%emt 0:00:04]} 25. Kf2 {[%emt 0:00:08]} c5 {[%emt 0:03:27]} 26. d5 {[%emt 0:01:41]} Be7 {[%emt 0:00:23]} 27. Ke2 {[%emt 0:00:34]} exd5 {[%emt 0:03:35]} 28. Rxd5 {[%emt 0:00:09]} Rxd5 {[%emt 0:00:43]} 29. Rxd5 {[%emt 0:00:08]} Rxd5 {[%emt 0:05:18]} 30. cxd5 {[%emt 0:00:02]} Kf8 {[%emt 0:00:11]} 31. Kd3 {[%emt 0:02:33]} Ke8 {[%emt 0:03:07]} 32. Kc4 {[%emt 0:01:22]} Kd7 {[%emt 0:01:25]} 33. Nf5 {[%emt 0:00:47]} Bd6 {[%emt 0:01:36]} 34. Kb5 {[%emt 0:03:05]} Kc7 {[%emt 0:01:48]} 35. a4 {[%emt 0:02:41]} a6+ {[%emt 0:00:41]} 36. Ka5 {[%emt 0:03:42]} Be5 {[%emt 0:00:28]} 37. d6+ {[%emt 0:01:29]} Kc6 {[%emt 0:00:11]} 38. b4 {[%emt 0:02:06]} Bc3 {[%emt 0:00:27]} 39. Ne7+ {[%emt 0:00:04]} Kxd6 {[%emt 0:00:39]} 40. Kb6 {[%emt 0:00:05]} Kxe7 {[%emt 0:00:42]} 41. bxc5 {[%emt 0:00:08]} Bb4 {[%emt 0:00:23]} 42. a5 {[%emt 0:01:44]} Kd7 {[%emt 0:00:28]} 43. Kxb7 {[%emt 0:00:32]} Bxc5 {[%emt 0:00:04]} 44. e4 {[%emt 0:00:10]} Kd6 {[%emt 0:00:23]} 45. Kxa6 {[%emt 0:00:05]} Ke5 {[%emt 0:00:09]} 46. Kb5 {[%emt 0:00:14]} Bf2 {[%emt 0:00:16]} 47. Kc6 {[%emt 0:00:47]} Kxe4 {[%emt 0:00:15]} 48. Kd7 {[%emt 0:00:03]} f5 {[%emt 0:00:27]} 49. g5 {[%emt 0:00:01]} Kf4 {[%emt 0:00:20]} 50. h4 {[%emt 0:00:15]} Bxh4 {[%emt 0:00:09]} 0-1